[Event "*** Titled Tuesday Blitz"]
[Site "Chess.com"]
[Date "2020.01.07"]
[Round "6"]
[White "MatthewG-p4p"]
[Black "Pilopa"]
[Result "1-0"]
[WhiteElo "2846"]
[BlackElo "2552"]
[TimeControl "180+2"]
[EndTime "14:25:39 PST"]
[Termination "MatthewG-p4p won by checkmate"]

1. e4 {[%clk 0:03:01.9]} 1... Nc6 {[%clk 0:03:00.3]} 2. Nc3 {[%clk 0:03:02.5]}
2... Nf6 {[%clk 0:03:00.3]} 3. d4 {[%clk 0:03:02.6]} 3... d5 {[%clk 0:03:01.3]}
4. e5 {[%clk 0:03:00.7]} 4... Nd7 {[%clk 0:03:02.6]} 5. Nxd5 {[%clk 0:02:53.9]}
5... Ndb8 {[%clk 0:03:03.5]} 6. Nc3 {[%clk 0:02:38]} 6... Qxd4 {[%clk
0:03:04.6]} 7. Qxd4 {[%clk 0:02:33.1]} 7... Nxd4 {[%clk 0:03:06.5]} 8. Bd3
{[%clk 0:02:34.9]} 8... Nbc6 {[%clk 0:03:06.7]} 9. Nd5 {[%clk 0:02:28.7]} 9...
Nxe5 {[%clk 0:02:43]} 10. Nxc7+ {[%clk 0:02:23.6]} 10... Kd8 {[%clk 0:02:41.1]}
11. Nxa8 {[%clk 0:02:23.7]} 11... Nxd3+ {[%clk 0:02:41.5]} 12. cxd3 {[%clk
0:02:25.2]} 12... Nc2+ {[%clk 0:02:41.6]} 13. Kd1 {[%clk 0:02:26.4]} 13... Nxa1
{[%clk 0:02:42.7]} 14. Bf4 {[%clk 0:02:27.1]} 14... f6 {[%clk 0:02:11.3]} 15. d4
{[%clk 0:02:15.6]} 15... Bf5 {[%clk 0:01:58]} 16. Ne2 {[%clk 0:02:10.8]} 16...
e6 {[%clk 0:01:41.3]} 17. Kd2 {[%clk 0:01:53.3]} 17... Nc2 {[%clk 0:01:38.5]}
18. Rc1 {[%clk 0:01:49.7]} 18... Bb4+ {[%clk 0:01:22.9]} 19. Kd1 {[%clk
0:01:50.8]} 19... Kd7 {[%clk 0:01:18.7]} 20. Nc7 {[%clk 0:01:24.1]} 20... a6
{[%clk 0:01:19.4]} 21. a3 {[%clk 0:00:45.1]} 21... Bd6 {[%clk 0:01:19.2]} 22.
Bxd6 {[%clk 0:00:42.1]} 22... Kxd6 {[%clk 0:01:20.5]} 23. g4 {[%clk 0:00:36.9]}
23... Be4 {[%clk 0:01:03.5]} 24. f3 {[%clk 0:00:37.9]} 24... Bg6 {[%clk
0:00:40.8]} 25. Nxe6 {[%clk 0:00:36.6]} 25... Kxe6 {[%clk 0:00:26.2]} 26. Nf4+
{[%clk 0:00:37.6]} 26... Kd6 {[%clk 0:00:23.6]} 27. Nxg6 {[%clk 0:00:39.1]}
27... Ne3+ {[%clk 0:00:18.8]} 28. Kd2 {[%clk 0:00:40.5]} 28... Nc4+ {[%clk
0:00:19.5]} 29. Rxc4 {[%clk 0:00:40.8]} 29... hxg6 {[%clk 0:00:20.6]} 30. Rb4
{[%clk 0:00:36.5]} 30... Rxh2+ {[%clk 0:00:21]} 31. Ke3 {[%clk 0:00:38.2]} 31...
b5 {[%clk 0:00:21.3]} 32. b3 {[%clk 0:00:37.1]} 32... Kc6 {[%clk 0:00:21.1]} 33.
a4 {[%clk 0:00:37.7]} 33... Kb6 {[%clk 0:00:22]} 34. d5 {[%clk 0:00:37.1]} 34...
Rh8 {[%clk 0:00:10.4]} 35. Rd4 {[%clk 0:00:36.1]} 35... Rd8 {[%clk 0:00:11.1]}
36. axb5 {[%clk 0:00:33.6]} 36... axb5 {[%clk 0:00:11.8]} 37. b4 {[%clk
0:00:34.6]} 37... Kc7 {[%clk 0:00:13.1]} 38. Rd2 {[%clk 0:00:34.2]} 38... Kd6
{[%clk 0:00:14.3]} 39. Rc2 {[%clk 0:00:31.7]} 39... Re8+ {[%clk 0:00:15.4]} 40.
Kd4 {[%clk 0:00:32.7]} 40... Re1 {[%clk 0:00:16.2]} 41. Rc6+ {[%clk 0:00:33.8]}
41... Kd7 {[%clk 0:00:17.2]} 42. Rb6 {[%clk 0:00:35.7]} 42... Rf1 {[%clk
0:00:14.3]} 43. Rxb5 {[%clk 0:00:36.1]} 43... Rxf3 {[%clk 0:00:15.4]} 44. Rb7+
{[%clk 0:00:37]} 44... Kd6 {[%clk 0:00:15.7]} 45. Rb6+ {[%clk 0:00:38.5]} 45...
Kd7 {[%clk 0:00:16.7]} 46. Ra6 {[%clk 0:00:39.6]} 46... Rf4+ {[%clk 0:00:17.4]}
47. Kc5 {[%clk 0:00:40.9]} 47... Rxg4 {[%clk 0:00:18.8]} 48. Ra7+ {[%clk
0:00:41.3]} 48... Kc8 {[%clk 0:00:18.4]} 49. Rxg7 {[%clk 0:00:43.2]} 49... Rg1
{[%clk 0:00:18]} 50. Kc6 {[%clk 0:00:42.9]} 50... Kb8 {[%clk 0:00:16.9]} 51. b5
{[%clk 0:00:42.6]} 51... Rc1+ {[%clk 0:00:17.6]} 52. Kd6 {[%clk 0:00:43.2]}
52... g5 {[%clk 0:00:19]} 53. Ke6 {[%clk 0:00:42.7]} 53... Rd1 {[%clk
0:00:16.1]} 54. d6 {[%clk 0:00:44]} 54... Kc8 {[%clk 0:00:15.8]} 55. Rg8+ {[%clk
0:00:44.5]} 55... Kb7 {[%clk 0:00:16.6]} 56. d7 {[%clk 0:00:46.4]} 56... Re1+
{[%clk 0:00:17.5]} 57. Kxf6 {[%clk 0:00:47.3]} 57... Rd1 {[%clk 0:00:17.2]} 58.
d8=Q {[%clk 0:00:48]} 58... Rxd8 {[%clk 0:00:18.5]} 59. Rxd8 {[%clk 0:00:49.9]}
59... Kb6 {[%clk 0:00:20.4]} 60. Kxg5 {[%clk 0:00:49.1]} 60... Kxb5 {[%clk
0:00:22.3]} 61. Kf5 {[%clk 0:00:50.3]} 61... Kc6 {[%clk 0:00:24.2]} 62. Ke5
{[%clk 0:00:52.2]} 62... Kc7 {[%clk 0:00:25.5]} 63. Rd3 {[%clk 0:00:54.1]} 63...
Kc6 {[%clk 0:00:27.4]} 64. Rc3+ {[%clk 0:00:55.7]} 64... Kb5 {[%clk 0:00:28.9]}
65. Kd5 {[%clk 0:00:57.6]} 65... Kb4 {[%clk 0:00:30.8]} 66. Rc5 {[%clk
0:00:58.3]} 66... Kb3 {[%clk 0:00:31.4]} 67. Rc4 {[%clk 0:00:59.9]} 67... Ka3
{[%clk 0:00:33]} 68. Kd4 {[%clk 0:01:01.8]} 68... Kb3 {[%clk 0:00:34.8]} 69. Kd3
{[%clk 0:01:03.7]} 69... Kb2 {[%clk 0:00:35.6]} 70. Rb4+ {[%clk 0:01:04.5]}
70... Ka2 {[%clk 0:00:35.6]} 71. Kc2 {[%clk 0:01:03.7]} 71... Ka3 {[%clk
0:00:37.5]} 72. Rc4 {[%clk 0:01:05.3]} 72... Ka2 {[%clk 0:00:38.2]} 73. Ra4#
{[%clk 0:01:07.2]} 1-0

[Event "*** Titled Tuesday Blitz"]
[Site "Chess.com"]
[Date "2020.01.07"]
[Round "6"]
[White "vanea_03"]
[Black "patrisiii123"]
[Result "1-0"]
[WhiteElo "2687"]
[BlackElo "2472"]
[TimeControl "180+2"]
[EndTime "14:25:39 PST"]
[Termination "vanea_03 won by resignation"]

1. Nf3 {[%clk 0:03:01.9]} 1... Nf6 {[%clk 0:03:00.8]} 2. g3 {[%clk 0:03:00.5]}
2... g6 {[%clk 0:03:01.6]} 3. b3 {[%clk 0:03:01.6]} 3... Bg7 {[%clk 0:03:03.1]}
4. Bb2 {[%clk 0:03:03.5]} 4... O-O {[%clk 0:03:03.9]} 5. Bg2 {[%clk 0:03:04.9]}
5... c5 {[%clk 0:03:04.4]} 6. c4 {[%clk 0:03:05.5]} 6... Nc6 {[%clk 0:03:05.7]}
7. O-O {[%clk 0:03:02.4]} 7... d6 {[%clk 0:03:07.1]} 8. e3 {[%clk 0:03:01.7]}
8... Bg4 {[%clk 0:03:06.6]} 9. h3 {[%clk 0:03:00.4]} 9... Bf5 {[%clk 0:03:07.7]}
10. d4 {[%clk 0:02:59.4]} 10... cxd4 {[%clk 0:03:06.2]} 11. Nxd4 {[%clk
0:02:56.9]} 11... Be4 {[%clk 0:03:04.6]} 12. Nf3 {[%clk 0:02:53.7]} 12... Qd7
{[%clk 0:03:01.8]} 13. Nc3 {[%clk 0:02:52.6]} 13... Bf5 {[%clk 0:02:56.8]} 14.
Kh2 {[%clk 0:02:44.5]} 14... Ne4 {[%clk 0:02:57.5]} 15. Nd4 {[%clk 0:01:35.5]}
15... Nxd4 {[%clk 0:02:49.8]} 16. exd4 {[%clk 0:01:37.4]} 16... Nxc3 {[%clk
0:02:48.2]} 17. Bxc3 {[%clk 0:01:39.3]} 17... Rac8 {[%clk 0:02:48.7]} 18. Rc1
{[%clk 0:01:25.3]} 18... h5 {[%clk 0:02:49.2]} 19. Re1 {[%clk 0:01:16.8]} 19...
b5 {[%clk 0:02:46.6]} 20. c5 {[%clk 0:01:12.3]} 20... dxc5 {[%clk 0:02:46.3]}
21. dxc5 {[%clk 0:01:14.2]} 21... Qxd1 {[%clk 0:02:45.7]} 22. Rexd1 {[%clk
0:01:15.7]} 22... Rxc5 {[%clk 0:02:44.6]} 23. Bxg7 {[%clk 0:01:17.3]} 23... Rxc1
{[%clk 0:02:44.3]} 24. Rxc1 {[%clk 0:01:19.2]} 24... Kxg7 {[%clk 0:02:45.1]} 25.
Rc7 {[%clk 0:01:20.1]} 25... a5 {[%clk 0:02:40.6]} 26. Rxe7 {[%clk 0:01:17.3]}
26... Be6 {[%clk 0:02:31.7]} 27. Rb7 {[%clk 0:01:14.6]} 27... a4 {[%clk
0:02:16.4]} 28. Rxb5 {[%clk 0:01:14.3]} 28... Rc8 {[%clk 0:02:13.4]} 29. Be4
{[%clk 0:00:53.5]} 29... Rd8 {[%clk 0:02:09.1]} 30. Kg2 {[%clk 0:00:38.4]} 30...
Rd2 {[%clk 0:02:08.6]} 31. bxa4 {[%clk 0:00:39.2]} 31... Rxa2 {[%clk 0:01:51.4]}
32. a5 {[%clk 0:00:39.8]} 32... Ra4 {[%clk 0:01:48.7]} 33. Bb7 {[%clk
0:00:38.1]} 33... Bc4 {[%clk 0:01:44.1]} 34. Rc5 {[%clk 0:00:38.1]} 34... Bd3
{[%clk 0:01:44.1]} 35. h4 {[%clk 0:00:36.7]} 35... Ra1 {[%clk 0:01:40.2]} 36.
Kf3 {[%clk 0:00:36.5]} 36... Bf5 {[%clk 0:01:40]} 37. a6 {[%clk 0:00:33.8]}
37... Bd3 {[%clk 0:01:37]} 38. Rc6 {[%clk 0:00:33.5]} 38... Ra3 {[%clk
0:01:38.2]} 39. Kf4 {[%clk 0:00:27.8]} 39... Ra4+ {[%clk 0:01:39]} 40. Ke3
{[%clk 0:00:27.2]} 40... Be4 {[%clk 0:01:37.5]} 41. Rc8 {[%clk 0:00:23.1]} 41...
Bf5 {[%clk 0:01:35.4]} 42. Kd2 {[%clk 0:00:22]} 42... Bxc8 {[%clk 0:01:35.6]}
43. Bxc8 {[%clk 0:00:23.9]} 43... Kf6 {[%clk 0:01:36.7]} 44. Kc3 {[%clk
0:00:23.9]} 44... Ke5 {[%clk 0:01:37.6]} 45. Kb3 {[%clk 0:00:24.4]} 45... Ra1
{[%clk 0:01:37.4]} 46. Bb7 {[%clk 0:00:12.6]} 46... Kd4 {[%clk 0:01:37.9]} 47.
Kb4 {[%clk 0:00:13]} 47... Kd3 {[%clk 0:01:31.4]} 48. Kc5 {[%clk 0:00:12.8]}
48... Ke2 {[%clk 0:01:31.8]} 49. f3 {[%clk 0:00:12.7]} 49... Kf2 {[%clk
0:01:30.8]} 50. g4 {[%clk 0:00:11.2]} 50... Kg3 {[%clk 0:01:31.6]} 51. gxh5
{[%clk 0:00:10.6]} 51... gxh5 {[%clk 0:01:33]} 52. Kb6 {[%clk 0:00:11.3]} 52...
Kxh4 {[%clk 0:01:34]} 53. a7 {[%clk 0:00:12.4]} 53... Kg3 {[%clk 0:01:32]} 54.
Ba6 {[%clk 0:00:13.2]} 54... Rb1+ {[%clk 0:01:18.3]} 55. Kc5 {[%clk 0:00:14]}
55... Rc1+ {[%clk 0:01:18.5]} 56. Kb4 {[%clk 0:00:15.4]} 56... h4 {[%clk
0:01:13.9]} 57. a8=Q {[%clk 0:00:15.6]} 57... h3 {[%clk 0:01:15.1]} 58. Qg8+
{[%clk 0:00:15.4]} 58... Kh2 {[%clk 0:01:16.2]} 59. Qxf7 {[%clk 0:00:11.8]}
59... Rg1 {[%clk 0:01:16.9]} 60. f4 {[%clk 0:00:10.7]} 60... Rg4 {[%clk
0:01:16.1]} 61. Bb7 {[%clk 0:00:09.7]} 61... Kg3 {[%clk 0:01:16.8]} 62. Kc3
{[%clk 0:00:09.1]} 62... Rxf4 {[%clk 0:01:17.1]} 63. Qh5 {[%clk 0:00:09.9]}
63... Rg4 {[%clk 0:01:10.5]} 64. Kd2 {[%clk 0:00:10]} 64... Rf4 {[%clk
0:01:09.1]} 65. Ke3 {[%clk 0:00:10.5]} 65... Rg4 {[%clk 0:01:09.3]} 66. Qe5+
{[%clk 0:00:11.4]} 66... Kh4 {[%clk 0:01:10.4]} 67. Kf3 {[%clk 0:00:11.3]} 67...
Ra4 {[%clk 0:01:07.4]} 68. Qe7+ {[%clk 0:00:09]} 68... Kh5 {[%clk 0:01:08]} 69.
Qe8+ {[%clk 0:00:10.5]} 1-0

[Event "*** Titled Tuesday Blitz"]
[Site "Chess.com"]
[Date "2020.01.07"]
[Round "6"]
[White "Manukyan_Artak"]
[Black "ITheOnlyME"]
[Result "0-1"]
[WhiteElo "2468"]
[BlackElo "2327"]
[TimeControl "180+2"]
[EndTime "14:25:43 PST"]
[Termination "ITheOnlyME won by checkmate"]

1. e4 {[%clk 0:03:01.9]} 1... c5 {[%clk 0:02:59.9]} 2. Nf3 {[%clk 0:03:02.4]}
2... g6 {[%clk 0:03:01.8]} 3. c3 {[%clk 0:03:02.8]} 3... d5 {[%clk 0:03:02.3]}
4. exd5 {[%clk 0:03:03.1]} 4... Qxd5 {[%clk 0:03:04.2]} 5. d4 {[%clk 0:03:04.5]}
5... Bg7 {[%clk 0:03:05.7]} 6. Be3 {[%clk 0:03:01.5]} 6... cxd4 {[%clk
0:03:04.4]} 7. cxd4 {[%clk 0:03:02.2]} 7... Nh6 {[%clk 0:02:59.8]} 8. Nc3 {[%clk
0:03:00.9]} 8... Qd8 {[%clk 0:02:58.8]} 9. Bb5+ {[%clk 0:02:48.4]} 9... Bd7
{[%clk 0:02:57]} 10. Qb3 {[%clk 0:02:43]} 10... Nf5 {[%clk 0:02:47.6]} 11. O-O
{[%clk 0:02:35.2]} 11... O-O {[%clk 0:02:48.4]} 12. Bxd7 {[%clk 0:02:34.7]}
12... Qxd7 {[%clk 0:02:48.2]} 13. Ne5 {[%clk 0:02:32.3]} 13... Bxe5 {[%clk
0:02:44.9]} 14. dxe5 {[%clk 0:02:34.2]} 14... Nxe3 {[%clk 0:02:46.1]} 15. fxe3
{[%clk 0:02:35.7]} 15... Nc6 {[%clk 0:02:45.7]} 16. Rxf7 {[%clk 0:02:22.8]}
16... Rxf7 {[%clk 0:02:39.3]} 17. e6 {[%clk 0:02:24]} 17... Na5 {[%clk
0:02:16.2]} 18. exf7+ {[%clk 0:02:21.6]} 18... Kf8 {[%clk 0:02:16.2]} 19. Qb4
{[%clk 0:02:12.5]} 19... Nc6 {[%clk 0:02:07.6]} 20. Qh4 {[%clk 0:02:12.7]} 20...
Kg7 {[%clk 0:01:59.9]} 21. Rf1 {[%clk 0:02:04.5]} 21... Rf8 {[%clk 0:02:00.2]}
22. Qf4 {[%clk 0:01:58.6]} 22... Qe6 {[%clk 0:01:52.6]} 23. h4 {[%clk
0:01:06.8]} 23... Rxf7 {[%clk 0:01:48.8]} 24. Qe4 {[%clk 0:01:05.2]} 24... Rxf1+
{[%clk 0:01:40]} 25. Kxf1 {[%clk 0:01:07.1]} 25... Qxe4 {[%clk 0:01:25.2]} 26.
Nxe4 {[%clk 0:01:09]} 26... b6 {[%clk 0:01:22.7]} 27. Ke2 {[%clk 0:01:06.8]}
27... h6 {[%clk 0:01:24]} 28. a3 {[%clk 0:01:04.7]} 28... Kf7 {[%clk 0:01:25.3]}
29. b4 {[%clk 0:00:55.3]} 29... Ke6 {[%clk 0:01:26.3]} 30. Nd2 {[%clk
0:00:55.1]} 30... Ne5 {[%clk 0:01:26.6]} 31. e4 {[%clk 0:00:46.9]} 31... b5
{[%clk 0:01:24.4]} 32. Ke3 {[%clk 0:00:46.9]} 32... a6 {[%clk 0:01:19.4]} 33.
Kd4 {[%clk 0:00:45]} 33... Kd6 {[%clk 0:01:19.9]} 34. Nf3 {[%clk 0:00:27.8]}
34... Nc4 {[%clk 0:00:57]} 35. a4 {[%clk 0:00:27.6]} 35... e5+ {[%clk 0:00:54]}
36. Kc3 {[%clk 0:00:28.6]} 36... Ne3 {[%clk 0:00:51.4]} 37. axb5 {[%clk
0:00:27.8]} 37... axb5 {[%clk 0:00:52]} 38. g3 {[%clk 0:00:28.3]} 38... h5
{[%clk 0:00:35.9]} 39. Nh2 {[%clk 0:00:23.5]} 39... Ke6 {[%clk 0:00:21.4]} 40.
Kd3 {[%clk 0:00:24.4]} 40... Nc4 {[%clk 0:00:19.5]} 41. Nf3 {[%clk 0:00:23.5]}
41... Kf6 {[%clk 0:00:18.6]} 42. Ng5 {[%clk 0:00:19.8]} 42... Nb2+ {[%clk
0:00:19.7]} 43. Kc3 {[%clk 0:00:20]} 43... Nd1+ {[%clk 0:00:20.1]} 44. Kd2
{[%clk 0:00:20.6]} 44... Nf2 {[%clk 0:00:21.1]} 45. Ke3 {[%clk 0:00:21.6]} 45...
Ng4+ {[%clk 0:00:21.7]} 46. Kf3 {[%clk 0:00:22.6]} 46... Nh2+ {[%clk 0:00:22.6]}
47. Kg2 {[%clk 0:00:23.9]} 47... Ng4 {[%clk 0:00:23.7]} 48. Nf3 {[%clk 0:00:25]}
48... Ne3+ {[%clk 0:00:23.3]} 49. Kf2 {[%clk 0:00:24.9]} 49... Nc2 {[%clk
0:00:24.6]} 50. Ne1 {[%clk 0:00:23.4]} 50... Nxb4 {[%clk 0:00:25.1]} 51. Ke3
{[%clk 0:00:22.7]} 51... Ke6 {[%clk 0:00:19.8]} 52. Nf3 {[%clk 0:00:21.5]} 52...
Nc6 {[%clk 0:00:20.1]} 53. Kd3 {[%clk 0:00:22.6]} 53... Kd6 {[%clk 0:00:16.3]}
54. Ng5 {[%clk 0:00:23.1]} 54... Kc5 {[%clk 0:00:14.6]} 55. Ne6+ {[%clk
0:00:24.1]} 55... Kb4 {[%clk 0:00:14.5]} 56. Nf8 {[%clk 0:00:24.6]} 56... Ka3
{[%clk 0:00:14.3]} 57. Nxg6 {[%clk 0:00:25.6]} 57... b4 {[%clk 0:00:15.4]} 58.
Kc2 {[%clk 0:00:22.1]} 58... Ka2 {[%clk 0:00:15.5]} 59. g4 {[%clk 0:00:21.7]}
59... b3+ {[%clk 0:00:17.4]} 60. Kc3 {[%clk 0:00:21.9]} 60... b2 {[%clk
0:00:14.1]} 61. gxh5 {[%clk 0:00:23.1]} 61... b1=Q {[%clk 0:00:15.2]} 62. h6
{[%clk 0:00:24.4]} 62... Qxe4 {[%clk 0:00:16.2]} 63. h7 {[%clk 0:00:25.7]} 63...
Qd4+ {[%clk 0:00:17.3]} 64. Kc2 {[%clk 0:00:25.8]} 64... Nb4+ {[%clk 0:00:18.3]}
65. Kc1 {[%clk 0:00:27.1]} 65... Qd3 {[%clk 0:00:17]} 66. h8=Q {[%clk
0:00:25.5]} 66... Qc2# {[%clk 0:00:18.9]} 0-1

[Event "*** Titled Tuesday Blitz"]
[Site "Chess.com"]
[Date "2020.01.07"]
[Round "6"]
[White "yoolund"]
[Black "SavelievAlexei"]
[Result "0-1"]
[WhiteElo "2502"]
[BlackElo "2336"]
[TimeControl "180+2"]
[EndTime "14:25:45 PST"]
[Termination "SavelievAlexei won on time"]

1. d4 {[%clk 0:03:01.9]} 1... Nf6 {[%clk 0:03:00.1]} 2. Bg5 {[%clk 0:03:02.6]}
2... e6 {[%clk 0:02:56.3]} 3. e4 {[%clk 0:03:03.4]} 3... Be7 {[%clk 0:02:56.3]}
4. Bd3 {[%clk 0:03:02.7]} 4... d6 {[%clk 0:02:55.5]} 5. f4 {[%clk 0:03:02.1]}
5... b6 {[%clk 0:02:53.9]} 6. Nf3 {[%clk 0:03:01.5]} 6... Bb7 {[%clk 0:02:55]}
7. Qe2 {[%clk 0:02:45.6]} 7... c5 {[%clk 0:02:54.2]} 8. c3 {[%clk 0:02:45.5]}
8... h6 {[%clk 0:02:38.1]} 9. Bh4 {[%clk 0:02:43.7]} 9... Nh5 {[%clk 0:02:38.5]}
10. Bg3 {[%clk 0:02:30.1]} 10... Nd7 {[%clk 0:02:31.7]} 11. Nbd2 {[%clk
0:02:28.1]} 11... Qc7 {[%clk 0:02:31.7]} 12. a4 {[%clk 0:02:23.5]} 12... a6
{[%clk 0:02:27.4]} 13. O-O {[%clk 0:02:07.6]} 13... Nxg3 {[%clk 0:02:24.6]} 14.
hxg3 {[%clk 0:02:09.5]} 14... O-O {[%clk 0:02:25.7]} 15. e5 {[%clk 0:01:38.6]}
15... Rfd8 {[%clk 0:02:09.6]} 16. Rad1 {[%clk 0:01:26.8]} 16... Nf8 {[%clk
0:02:10.2]} 17. f5 {[%clk 0:01:11.2]} 17... exf5 {[%clk 0:02:06.3]} 18. Bxf5
{[%clk 0:01:09.5]} 18... cxd4 {[%clk 0:01:26.9]} 19. e6 {[%clk 0:01:02.1]} 19...
fxe6 {[%clk 0:01:11.1]} 20. Bxe6+ {[%clk 0:01:01]} 20... Nxe6 {[%clk 0:01:12.3]}
21. Qxe6+ {[%clk 0:01:00.9]} 21... Kh8 {[%clk 0:01:13.9]} 22. Nxd4 {[%clk
0:00:57.1]} 22... Bc8 {[%clk 0:01:10.8]} 23. Qe4 {[%clk 0:00:52.7]} 23... Bb7
{[%clk 0:01:05.4]} 24. Qg6 {[%clk 0:00:52.3]} 24... Bf6 {[%clk 0:00:34.6]} 25.
Rxf6 {[%clk 0:00:47]} 25... gxf6 {[%clk 0:00:35.3]} 26. Qxh6+ {[%clk 0:00:45.3]}
26... Kg8 {[%clk 0:00:35.6]} 27. Qg6+ {[%clk 0:00:44.9]} 27... Qg7 {[%clk
0:00:35.7]} 28. Qxg7+ {[%clk 0:00:44.9]} 28... Kxg7 {[%clk 0:00:37.4]} 29. Ne6+
{[%clk 0:00:46.8]} 29... Kf7 {[%clk 0:00:37.9]} 30. Nxd8+ {[%clk 0:00:48.7]}
30... Rxd8 {[%clk 0:00:39.6]} 31. Kf2 {[%clk 0:00:46.4]} 31... Ke6 {[%clk
0:00:28.3]} 32. Nb3 {[%clk 0:00:43.8]} 32... Be4 {[%clk 0:00:25.2]} 33. Nd4+
{[%clk 0:00:42.9]} 33... Ke5 {[%clk 0:00:23.9]} 34. Rh1 {[%clk 0:00:37.2]} 34...
b5 {[%clk 0:00:19.4]} 35. Rh5+ {[%clk 0:00:36.2]} 35... f5 {[%clk 0:00:20]} 36.
Rh6 {[%clk 0:00:35.9]} 36... bxa4 {[%clk 0:00:19.2]} 37. Nf3+ {[%clk 0:00:10.5]}
37... Kd5 {[%clk 0:00:18.9]} 38. Rh1 {[%clk 0:00:03.1]} 38... Rb8 {[%clk
0:00:19]} 39. Ra1 {[%clk 0:00:05]} 39... Rxb2+ {[%clk 0:00:15.4]} 40. Ke3 {[%clk
0:00:04.4]} 40... Rxg2 {[%clk 0:00:14.2]} 41. Nd4 {[%clk 0:00:03.7]} 41... Rxg3+
{[%clk 0:00:14.4]} 42. Kf4 {[%clk 0:00:04.6]} 42... Rxc3 {[%clk 0:00:15.3]} 43.
Nxf5 {[%clk 0:00:04.7]} 43... Bxf5 {[%clk 0:00:15.5]} 44. Kxf5 {[%clk
0:00:06.6]} 44... a3 {[%clk 0:00:16.9]} 45. Rd1+ {[%clk 0:00:07.6]} 45... Kc5
{[%clk 0:00:17.7]} 46. Ke4 {[%clk 0:00:06.9]} 46... a2 {[%clk 0:00:17.6]} 47.
Rd5+ {[%clk 0:00:03.5]} 47... Kb4 {[%clk 0:00:17]} 48. Rd1 {[%clk 0:00:04.9]}
48... Kb3 {[%clk 0:00:17.5]} 49. Kd4 {[%clk 0:00:06.1]} 49... Rc5 {[%clk
0:00:17.5]} 50. Rh1 {[%clk 0:00:02.9]} 50... Kb2 {[%clk 0:00:18]} 0-1

[Event "*** Titled Tuesday Blitz"]
[Site "Chess.com"]
[Date "2020.01.07"]
[Round "6"]
[White "Szczor"]
[Black "chess3054"]
[Result "1-0"]
[WhiteElo "2599"]
[BlackElo "2430"]
[TimeControl "180+2"]
[EndTime "14:25:50 PST"]
[Termination "Szczor won by resignation"]

1. e4 {[%clk 0:03:01.9]} 1... e5 {[%clk 0:02:59.8]} 2. Nf3 {[%clk 0:03:03]} 2...
Nc6 {[%clk 0:03:00.5]} 3. Bb5 {[%clk 0:03:04.5]} 3... a6 {[%clk 0:03:01.1]} 4.
Ba4 {[%clk 0:03:04.7]} 4... Nf6 {[%clk 0:03:01.7]} 5. O-O {[%clk 0:03:06.1]}
5... Be7 {[%clk 0:03:02.3]} 6. d3 {[%clk 0:03:07.1]} 6... b5 {[%clk 0:02:57.2]}
7. Bb3 {[%clk 0:03:08.2]} 7... d6 {[%clk 0:02:58.7]} 8. a4 {[%clk 0:03:09.1]}
8... Bb7 {[%clk 0:02:38.2]} 9. Nc3 {[%clk 0:03:08.9]} 9... b4 {[%clk 0:02:37.5]}
10. Nd5 {[%clk 0:03:09.6]} 10... Na5 {[%clk 0:02:18.6]} 11. Nxf6+ {[%clk
0:03:06]} 11... Bxf6 {[%clk 0:02:18.2]} 12. Ba2 {[%clk 0:03:07.6]} 12... Rb8
{[%clk 0:02:07.1]} 13. c3 {[%clk 0:03:06.1]} 13... b3 {[%clk 0:02:03.3]} 14. Bb1
{[%clk 0:03:03]} 14... c5 {[%clk 0:02:02.5]} 15. c4 {[%clk 0:02:52.5]} 15... Bc8
{[%clk 0:01:48.2]} 16. Bd2 {[%clk 0:02:52.4]} 16... Nc6 {[%clk 0:01:43.7]} 17.
h3 {[%clk 0:02:44]} 17... O-O {[%clk 0:01:43.5]} 18. Ra3 {[%clk 0:02:34.7]}
18... Qb6 {[%clk 0:01:43.2]} 19. a5 {[%clk 0:02:35.7]} 19... Qb7 {[%clk
0:01:43.4]} 20. Bc3 {[%clk 0:02:37.1]} 20... g6 {[%clk 0:01:37.4]} 21. Nd2
{[%clk 0:02:37.8]} 21... Bg7 {[%clk 0:01:15.1]} 22. Rxb3 {[%clk 0:02:35.3]}
22... Qc7 {[%clk 0:01:14.5]} 23. Rxb8 {[%clk 0:02:35.7]} 23... Qxb8 {[%clk
0:01:16.4]} 24. Bc2 {[%clk 0:02:24.4]} 24... f5 {[%clk 0:01:15.6]} 25. Ba4
{[%clk 0:02:12.9]} 25... Nd4 {[%clk 0:01:12.5]} 26. Bxd4 {[%clk 0:02:10.3]}
26... exd4 {[%clk 0:01:14.4]} 27. Qb3 {[%clk 0:01:56]} 27... Qxb3 {[%clk
0:01:12.1]} 28. Bxb3 {[%clk 0:01:49.3]} 28... Bh6 {[%clk 0:01:11.2]} 29. Rd1
{[%clk 0:01:38.8]} 29... Bb7 {[%clk 0:01:01.8]} 30. exf5 {[%clk 0:01:38.5]}
30... gxf5 {[%clk 0:00:58.2]} 31. Ba4 {[%clk 0:01:33]} 31... Kf7 {[%clk
0:00:47.9]} 32. g3 {[%clk 0:01:17.2]} 32... Kf6 {[%clk 0:00:41.5]} 33. f4 {[%clk
0:01:17.3]} 33... Rg8 {[%clk 0:00:38.3]} 34. Kf2 {[%clk 0:01:18.2]} 34... Bxf4
{[%clk 0:00:20.1]} 35. gxf4 {[%clk 0:01:18.5]} 35... Rg2+ {[%clk 0:00:21.7]} 36.
Kf1 {[%clk 0:01:13.1]} 36... Rh2 {[%clk 0:00:23]} 37. Ke1 {[%clk 0:01:01.1]}
37... Rxh3 {[%clk 0:00:21.6]} 38. Nf1 {[%clk 0:01:01.7]} 38... Rh1 {[%clk
0:00:19.3]} 39. Kf2 {[%clk 0:01:01.1]} 39... h5 {[%clk 0:00:14.9]} 40. Be8
{[%clk 0:00:52.6]} 40... h4 {[%clk 0:00:15.8]} 41. Bh5 {[%clk 0:00:53.8]} 41...
Rh3 {[%clk 0:00:13.9]} 42. Be2 {[%clk 0:00:50.2]} 42... d5 {[%clk 0:00:10.7]}
43. Rc1 {[%clk 0:00:48.9]} 43... Ke7 {[%clk 0:00:09.7]} 44. Bf3 {[%clk
0:00:42.4]} 44... Kd6 {[%clk 0:00:09]} 45. Kg2 {[%clk 0:00:38.2]} 45... Rxf3
{[%clk 0:00:09.5]} 46. Kxf3 {[%clk 0:00:39.4]} 46... dxc4+ {[%clk 0:00:11.4]}
47. Ke2 {[%clk 0:00:38.8]} 47... cxd3+ {[%clk 0:00:10.9]} 48. Kxd3 {[%clk
0:00:40.7]} 48... Be4+ {[%clk 0:00:10.8]} 49. Ke2 {[%clk 0:00:37.9]} 49... Kd5
{[%clk 0:00:12]} 50. Nd2 {[%clk 0:00:36.9]} 50... Bg2 {[%clk 0:00:12.9]} 51. Kf2
{[%clk 0:00:28.8]} 51... h3 {[%clk 0:00:14]} 52. Kg3 {[%clk 0:00:28.7]} 52... d3
{[%clk 0:00:12.7]} 53. Nb3 {[%clk 0:00:27.2]} 53... c4 {[%clk 0:00:13.3]} 54.
Nd2 {[%clk 0:00:28.5]} 54... Kd4 {[%clk 0:00:10.2]} 55. Nxc4 {[%clk 0:00:29.7]}
55... Be4 {[%clk 0:00:05.2]} 56. Kxh3 {[%clk 0:00:29.9]} 56... Bd5 {[%clk
0:00:05.3]} 57. b3 {[%clk 0:00:30.5]} 57... Ke4 {[%clk 0:00:04.8]} 58. Kg3
{[%clk 0:00:30.8]} 58... Bxc4 {[%clk 0:00:05.7]} 59. Rxc4+ {[%clk 0:00:31.4]}
59... Ke3 {[%clk 0:00:07.1]} 60. Rc6 {[%clk 0:00:21.7]} 60... d2 {[%clk
0:00:08.1]} 61. Rxa6 {[%clk 0:00:18.5]} 61... d1=Q {[%clk 0:00:04.8]} 62. Re6+
{[%clk 0:00:20]} 62... Kd2 {[%clk 0:00:06.5]} 63. Rd6+ {[%clk 0:00:21.6]} 63...
Kc2 {[%clk 0:00:05.4]} 64. Rxd1 {[%clk 0:00:23.5]} 64... Kxd1 {[%clk 0:00:06.9]}
65. a6 {[%clk 0:00:24.9]} 1-0